Cogmind - Beta 15 @@@ ROGUE MODE // 2025.05.10 @ 18:48:00 Player: Falconhoof Result: Destroyed by Y-45 Defender with Beam Rifle Performance ------------- Evolutions (1) 500 Regions Visited (3) 600 Robots Destroyed (40) 200 Value Destroyed (975) 975 Prototype IDs (4) 80 Alien Tech Used (0) 0 Bonus (195) 195 TOTAL SCORE: 2550 Bonus ------- Follower Combat Kills 195 Cogmind --------- Core Integrity 0/400 Matter 260/300 Energy 140/140 System Corruption 0% Temperature Cool (9) Movement Walking (190) Ox1 Location -9/Storage Parts ------- > --- POWER (1) -------- Light Deuterium Engine > --- PROPULSION (2) --- Aluminum Leg Improved Aluminum Leg > --- UTILITY (3) ------ Improved Heat Sink Medium Storage Unit Actuator Array > --- WEAPON (3) ------- Rocket Launcher Maul Katana > --- INVENTORY (10) --- Light Deuterium Engine Aluminum Leg Aluminum Leg Aluminum Leg Cooled Aerolev Unit Improved Heat Sink Actuator Array Light Armor Plating Improved Medium Laser Flail Peak State ------------ > --- POWER ------------ Light Deuterium Engine > --- PROPULSION ------- Aluminum Leg Cooled Aerolev Unit > --- UTILITY ---------- Improved Heat Sink Medium Storage Unit Actuator Array > --- WEAPON ----------- Rocket Launcher Maul Katana > --- INVENTORY -------- Improved Ion Engine Light Deuterium Engine Aluminum Leg Aluminum Leg Improved Heat Sink Actuator Array Light Armor Plating Improved Medium Laser Flail [Rating: 25] Favorites ----------- Power Ion Engine Engine Ion Engine Propulsion Aluminum Leg Leg Aluminum Leg Hover Unit Cooled Aerolev Unit Utility Small Storage Unit Device Actuator Array Storage Small Storage Unit Protection Hardened Light Armor Plating Weapon Maul Energy Gun Improved Medium Laser Energy Cannon Light EM Pulse Cannon Launcher Rocket Launcher Impact Weapon Maul Slashing Weapon Katana Build | -11 -10 -9 -9 ------- Run | Yrd Mat Mat Sto Slots Evolved 2 | . . 2 . Power . | . . . . Propulsion . | . . . . Utility 1 | . . 1 . Weapon 1 | . . 1 . Parts Attached 43 | 6 6 22 9 Power 6 | 1 . 4 1 Engine 6 | 1 . 4 1 Core . | . . . . Reactor . | . . . . Propulsion 14 | 2 2 4 6 Treads . | . . . . Leg 13 | 2 2 4 5 Wheel . | . . . . Hover 1 | . . . 1 Flight . | . . . . Utility 8 | 1 1 5 1 Device 5 | . 1 4 . Storage 2 | 1 . . 1 Processor . | . . . . Hackware . | . . . . Protection 1 | . . 1 . Artifact . | . . . . Weapon 15 | 2 3 9 1 Energy Gun 5 | 2 . 3 . Energy Cannon 3 | . 1 2 . Ballistic Gun . | . . . . Ballistic Cannon . | . . . . Launcher 2 | . . 2 . Special Weapon . | . . . . Impact Weapon 4 | . 2 2 . Slashing Weapon 1 | . . . 1 Piercing Weapon . | . . . . Special Melee Weapon . | . . . . Unidentified Prototypes 2 | . . 1 1 Parts Lost 10 | . . 10 . Power 2 | . . 2 . Propulsion 3 | . . 3 . Utility 1 | . . 1 . Weapon 4 | . . 4 . Highest Loss Streak 10 | . . 10 . To Critical Strikes . | . . . . Average Backups 6 | 1 3 6 9 Power 1 | 1 1 1 2 Propulsion 1 | . . . 2 Utility 1 | . . 1 3 Weapon 2 | . 2 2 1 Tool/Special . | . . . . Unused Backups 13 | . 3 3 7 Power 3 | . . 2 1 Propulsion 2 | . . . 2 Utility 4 | . . . 4 Weapon 4 | . 3 1 . Tool/Special . | . . . . Average Slot Usage (%) 91 | . 88 86 99 Engine 11 | . 14 10 11 Leg 22 | . 28 19 21 Device 13 | . 3 12 22 Storage 11 | . 14 11 11 Energy Gun 12 | . 20 13 6 Energy Cannon 2 | . . 4 . Launcher 2 | . . 2 4 Impact Weapon 12 | . 6 11 19 Peak Build Rating 25 | 6 10 20 25 Average Rating 13 | 4 6 13 20 On Entrance 9 | . 6 10 20 Naked Turns . | . . . . Heaviest Build 30 | 14 18 25 30 Greatest Support 23 | 20 20 20 23 Greatest Overweight (x) 5 | . . 5 2 Average Overweight (x) . | . . . 1 Largest Inventory Capacity 10 | 8 8 8 10 Average Capacity 8 | 6 8 8 9 Most Carried 10 | 5 8 8 10 Average Carried 6 | 2 3 6 9 Final Capacity 10 | 8 8 8 10 Final Carried 10 | 2 8 8 10 Class Distribution -------------------- 37% | Mutant 29% | Scavenger-Mutant 15% | Commander-Gladiator 14% | Gladiator 3% | Scavenger-Gladiator Dominant Class ---------------- Mutant | -10/Materials Scavenger-Mutant | -9/Materials Commander-Gladiator | -9/Storage Resources | -11 -10 -9 -9 ----------- Run | Yrd Mat Mat Sto Matter Collected 655 | 237 53 231 134 Remotely . | . . . . Salvage Created 1390 | . 228 812 350 Parts 65 | . 14 32 19 Haulers Intercepted 7 | . 1 5 1 Recyclers Shooed 4 | . 1 2 1 Parts Field Recycled . | . . . . Retrieved Matter . | . . . . Parts Self-Destructed . | . . . . Prevented . | . . . . Kills | -11 -10 -9 -9 ------- Run | Yrd Mat Mat Sto Combat Hostiles Destroyed 29 | . 6 16 7 Melee 3 | . . 3 . Guns 13 | . 6 6 1 Cannons 4 | . . 4 . AOE 7 | . . 1 6 Classes Destroyed 9 | . 4 2 3 Worker 1 | . . 1 . Builder 1 | . . . 1 Hauler 7 | . 1 5 1 Recycler 1 | . . . 1 Operator 1 | . 1 . . Swarmer 6 | . 3 3 . Grunt 20 | . 3 11 6 Duelist 1 | . . . 1 Sentry 2 | . . 2 . Best Kill Streak 7 | . 3 7 4 Combat Bots Only 6 | . 3 6 3 Max Kills in Single Turn 4 | . 1 1 4 Gunslinging . | . . . . Exploded 2 | . . 1 2 Melee 1 | . . 1 . Uniques/NPCs Destroyed . | . . . . Combat | -11 -10 -9 -9 -------- Run | Yrd Mat Mat Sto Hostile Shots Fired 205 | . 25 166 14 Missed 55 | . 6 46 3 Hits 150 | . 19 120 11 Projectile 150 | . 19 120 11 Critical Strikes 4 | . . 4 . Damage Taken 1654 | . 193 1300 161 Core 458 | . 44 344 70 Absorbed by Shields . | . . . . Core Remaining (%) 91 | 100 82 . . Volleys Fired 78 | . 25 44 9 Largest 2 | . 2 2 1 Hottest 112 | . 100 112 56 Shots Fired 120 | . 41 70 9 Gun 96 | . 41 50 5 Cannon 19 | . . 19 . Launcher 5 | . . 1 4 Special . | . . . . Kinetic . | . . . . Thermal 96 | . 41 50 5 Explosive 5 | . . 1 4 Electromagnetic 19 | . . 19 . Robot Hit Streak 12 | . 6 12 2 Robot Miss Streak 6 | . 6 3 2 Penetration Max . | . . . . Secondary Targets . | . . . . Shots Hit Robots 91 | . 25 58 8 Core Hits 49 | . 11 26 12 Critical Kills 1 | . . 1 . Critical Parts Destroyed 2 | . . 2 . Critical Strikes 8 | . 2 6 . Burn 3 | . 2 1 . Corrupt 2 | . . 2 . Smash 3 | . . 3 . Melee Attacks 31 | . 2 23 6 Impact 29 | . 2 23 4 Slashing 2 | . . . 2 Piercing . | . . . . Sneak Attacks 6 | . 1 3 2 Combat Hostiles . | . . . . Follow-up Attacks 1 | . . . 1 Damage Inflicted 2854 | . 385 1768 701 Guns 885 | . 286 549 50 Cannons 324 | . . 324 . Explosions 646 | . . 194 452 Melee 999 | . 99 701 199 Ramming . | . . . . Kinetic . | . . . . Thermal 1067 | . 286 731 50 Explosive 464 | . . 12 452 Electromagnetic 324 | . . 324 . Impact 937 | . 99 701 137 Slashing 62 | . . . 62 Piercing . | . . . . Highest Corruption . | . . . . Average Corruption . | . . . . Corruption Purged . | . . . . Corruption Blocked . | . . . . Overload Shots . | . . . . Overflow Damage 239 | . 42 144 53 Projectiles . | . . . . Explosions 4 | . . 4 . Melee 235 | . 42 140 53 Knockbacks 2 | . 1 1 . Impact 2 | . 1 1 . Kinetic . | . . . . Secondary . | . . . . Self-Inflicted Damage 31 | . . 29 2 Shots 3 | . . 2 1 Rammed . | . . . . Targets Rammed . | . . . . Kicked . | . . . . Crushed . | . . . . Highest Temperature 313 | . 313 63 4 Average Temperature 75 | . 130 16 4 Received Heat Transfer 606 | . 60 486 60 Siege Activations . | . . . . Martial Activations . | . . . . Shielding Activations . | . . . . Robots Disrupted . | . . . . Combat Hostiles . | . . . . Robots Corrupted 4 | . . 3 1 Combat Hostiles 2 | . . 2 . Parts Fried 9 | . 3 6 . Impact Corruptions 7 | . 1 5 1 Robots Melted . | . . . . Combat Hostiles . | . . . . Parts Melted 3 | . . 2 1 Heat Transferred 2742 | . 999 1632 111 Parts Sabotaged . | . . . . Parts Stolen . | . . . . Parts Stripped . | . . . . Power Chain Reactions 2 | . . 2 . Alert | -11 -10 -9 -9 ------- Run | Yrd Mat Mat Sto Maximum Alert Level . | . . . . Low Security (%) 100 | 100 100 100 100 Level 1 . | . . . . Level 2 . | . . . . Level 3 . | . . . . Level 4 . | . . . . Level 5 . | . . . . High Security . | . . . . Max Security . | . . . . Peak Influence 168 | . 102 155 168 Initial 29 | . . 29 29 Average 77 | . 53 86 90 Influence Increases 1276 | . 217 498 561 Destroy 0b10 Robot/C 760 | . 120 320 320 Destroy 0b10 Robot/NC 55 | . 10 30 15 Destroy Leader 164 | . 22 70 72 Allied During Kill 87 | . . . 87 Successful Hack 29 | . 5 5 19 Disable Machine 45 | . . 30 15 Destroy Structure 61 | . . 28 33 Lose Combat Pursuer 75 | . 60 15 . Influence Decreases 1149 | . 146 499 504 Entered New Map 83 | . . 42 41 Time Decay 773 | . 146 357 270 Lost Part 100 | . . 100 . Lost Ally 193 | . . . 193 Squads Dispatched 5 | . 1 2 2 Investigation 2 | . . 2 . Extermination . | . . . . Reinforcement 2 | . 1 . 1 Assault . | . . . . Garrison 1 | . . . 1 Intercept . | . . . . Searches Triggered . | . . . . Construction Impeded . | . . . . Haulers Reinforced . | . . . . Active Scanning Responses . | . . . . Cargo Convoy Interrupts . | . . . . Stealth | -11 -10 -9 -9 --------- Run | Yrd Mat Mat Sto Distress Signals 3 | . 1 . 2 Communications Jammed . | . . . . Distress Signals . | . . . . Times Spotted 54 | . 15 19 20 Peak Tracking Total 6 | . 4 6 4 Tactical Retreats 4 | . 3 1 . Traps | -11 -10 -9 -9 ------- Run | Yrd Mat Mat Sto Traps Triggered 4 | . 1 2 1 Indirectly . | . . . . Trap Hack Attempts . | . . . . Triggered . | . . . . Disarmed . | . . . . Reprogrammed . | . . . . Reused . | . . . . Traps Extracted . | . . . . Installed . | . . . . Triggered . | . . . . Machines | -11 -10 -9 -9 ---------- Run | Yrd Mat Mat Sto Machines Disabled 3 | . . 2 1 Max in Single Turn 1 | . . 1 1 Garrison Access 1 | . . . 1 Machines Repaired . | . . . . Machines Dismantled . | . . . . Machines Sabotaged . | . . . . Overloaded Fab Kills . | . . . . Hacking | -11 -10 -9 -9 --------- Run | Yrd Mat Mat Sto Machines Accessed 10 | . 4 1 5 Terminals 8 | . 3 1 4 Fabricators . | . . . . Repair Stations . | . . . . Recycling Units 1 | . 1 . . Scanalyzers . | . . . . Garrison Access 1 | . . . 1 Total Hacks 21 | . 10 3 8 Successful 12 | . 5 2 5 Failed 9 | . 5 1 3 Catastrophic 2 | . 2 . . Database Lockouts . | . . . . Manual . | . . . . Terminals 17 | . 8 3 6 Fabricators . | . . . . Repair Stations . | . . . . Recycling Units 2 | . 2 . . Scanalyzers . | . . . . Garrison Access 2 | . . . 2 Terminal Hacks 9 | . 3 2 4 Record 1 | . 1 . . Prototype ID Bank 1 | . . 1 . Open Door 1 | . . . 1 Branch Access Points 1 | . . . 1 Alert Level 1 | . . . 1 Dispatch Records 1 | . 1 . . Transport Status 1 | . 1 . . Hauler Manifests 1 | . . 1 . Zone Layout 1 | . . . 1 Fabricator Hacks . | . . . . Repair Station Hacks . | . . . . Recycling Unit Hacks 2 | . 2 . . Report Inventory 1 | . 1 . . Retrieve Components 1 | . 1 . . Scanalyzer . | . . . . Garrison Access Hacks 1 | . . . 1 Seal Access 1 | . . . 1 Unauthorized Hacks . | . . . . Terminals . | . . . . Fabricators . | . . . . Repair Stations . | . . . . Recycling Units . | . . . . Scanalyzers . | . . . . Garrison Access . | . . . . Data Cores Recovered . | . . . . Used . | . . . . Hacking Detections 6 | . 4 1 1 Full Trace Events . | . . . . Feedback Events . | . . . . Feedback Blocked . | . . . . Robot Schematics Acquired . | . . . . Robots Built . | . . . . Authchips . | . . . . Time . | . . . . Total Robot Build Rating . | . . . . Part Schematics Acquired . | . . . . Parts Built . | . . . . Authchips . | . . . . Time . | . . . . Total Part Build Rating . | . . . . Parts Repaired . | . . . . Time . | . . . . Parts Recycled . | . . . . Recycled Matter . | . . . . Retrieved Matter . | . . . . Retrieved Components 7 | . 7 . . Parts Scanalyzed . | . . . . Part Schematics Acquired . | . . . . Parts Damaged . | . . . . Bothacking | -11 -10 -9 -9 ------------ Run | Yrd Mat Mat Sto Used RIF Installer . | . . . . Robots Hacked . | . . . . Non-combat . | . . . . Combat . | . . . . Robot Hacks Applied . | . . . . Relay Couplers Released . | . . . . Fabnet Peak Effective % . | . . . . Robots Rewired . | . . . . Allies Hacked . | . . . . Hacks Repelled . | . . . . Allies | -11 -10 -9 -9 -------- Run | Yrd Mat Mat Sto Total Allies 10 | . . . 10 Largest Group 10 | . . . 10 Highest-Rated Group 88 | . . . 88 Highest-Rated Ally 16 | . . . 16 Total Orders . | . . . . Ally Attacks 66 | . . . 66 Total Damage 600 | . . . 600 Kills 9 | . . . 9 Allies Corrupted . | . . . . Allies Melted . | . . . . Intel | -11 -10 -9 -9 ------- Run | Yrd Mat Mat Sto Active Infowar (turns) . | . . . . Robot Analysis Total . | . . . . Derelict Logs Recovered . | . . . . Drone Launches . | . . . . Drone Recoveries . | . . . . Exploration | -11 -10 -9 -9 ------------- Run | Yrd Mat Mat Sto Turns Passed 1927 | 60 431 844 592 Spaces Moved 935 | 48 258 369 260 Core 24 | 16 . 8 . Treads . | . . . . Legs 911 | 32 258 361 260 Wheels . | . . . . Hover . | . . . . Flight . | . . . . Fastest Speed 50 | 50 120 120 190 Average Speed 154 | 96 120 161 190 Slowest Speed 300 | 120 120 300 260 Overloaded Moves . | . . . . Propulsion Burnouts . | . . . . Robots Hopped . | . . . . Potential Cave-ins . | . . . . Cave-ins Triggered . | . . . . Exploration Rate (%) 27 | 5 44 23 36 Regions Visited 3 Branch Regions 1 Pre-discovered Areas . | . . . . Known Exits Taken . | . . . . Unknown Exits Taken 3 | 1 1 1 . Scrap Searched . | . . . . Spaces Dug . | . . . . Terrain Destroyed 55 | . . 25 30 Melee . | . . . . Projectile . | . . . . AOE 55 | . . 25 30 Terrain Rammed . | . . . . Walls Destroyed . | . . . . Machines Disabled . | . . . . Actions | -11 -10 -9 -9 --------- Run | Yrd Mat Mat Sto Total 1244 | 61 335 501 347 Wait 81 | . 30 15 36 Move 932 | 47 257 368 260 Hop . | . . . . Pick Up 37 | 8 9 9 11 Fast Attach 19 | . 4 13 2 Attach 20 | 6 1 9 4 Detach 5 | . 1 3 1 Swap 10 | . 1 4 5 Drop 32 | . 5 13 14 Fire 78 | . 25 44 9 Melee 30 | . 2 23 5 Ram . | . . . . Kick . | . . . . Crush . | . . . . Escape Stasis . | . . . . Rewire . | . . . . Trap . | . . . . Miscellaneous . | . . . . Route ------- -11/Scrapyard -10/Materials (discovered 3 exits: *Mat x2 / [*Min]) -9/Materials -9/Storage (discovered 1 exit: Rec) History --------- Turn | Location | Event 32 | -11/Scrapyard | Discovered new exit (range 14) 61 | -11/Scrapyard | Entered Materials 145 | -10/Materials | Discovered new exit (range 8) 303 | -10/Materials | Build established: Mutant 306 | -10/Materials | Discovered new exit (range 4) 430 | -10/Materials | Discovered new exit (range 10) 492 | -10/Materials | Entered another Materials area 492 | -9/Materials | Evolved 2 slots: Utility x1, Weapon x1 683 | -9/Materials | Core integrity fell below 50% 717 | -9/Materials | Lost 10 parts (2p3n1u4w) 847 | -9/Materials | Discovered new exit (range 8) 903 | -9/Materials | Core integrity fell below 20% 1034 | -9/Materials | Build established: Scavenger-Mutant 1336 | -9/Materials | Entered Storage 1368 | -9/Storage | Assisted by bots powering up and referring to "LRC-V3" 1662 | -9/Storage | Garrison activated, responded to threat 1699 | -9/Storage | Lost 7 allies 1748 | -9/Storage | Identified exit to Recycling 1928 | -9/Storage | Destroyed by Y-45 Defender with Beam Rifle Last Messages --------------- Acquired Prototype Hover Unit. Dropped Aluminum Leg. Identified Cld. Aerolev Unit. The Cld. Aerolev Unit is "overloadable", activating it again increases its output for additional resource costs, and may damage the unit. See Burnout stat context help for more info. Dropped Cld. Aerolev Unit. Acquired Aluminum Leg. Dropped Aluminum Leg. Acquired Cld. Aerolev Unit. Dropped Aluminum Leg. Acquired Imp. Aluminum Leg. Connecting with Terminal... >>Alert(Check) Current Alert Level: Low Security Dropped Imp. Ion Engine. Acquired Aluminum Leg. R-06 Scavenger collects Sml. Laser. Map ----- +----------------------------------------------------+ | ??????????????????# #???????????????? | | ????????????????### """ #???????????????? | | ????????????????#"" """ +???????????????? | | ????????????????#"T """ #???????????????? | | ????????????????#"" #???????????????? | | ????????????????### """ #???????????????? | | ??????????????????# *""" #???????????????? | | ??????????????????# """ #???????????????? | | ??????????????????# #??##???????????? | | ??????????>???????#####+#### #????? ##???? | | ?????????????????????# #????? #?? | | ??????????????????#### ### #????# #?? | | ??????????????????# #??????????# #?? | | ??????????????????# #??????????# #?? | | ??????????????????# #??????????# #?? | | ??????????????????# %#??????????# #?? | | ??????????????##### !=#???#####??# #?? | | ??????????????# + = [%#####"T"#### #?? | | ??????????????###T# ## # ### | | ????????????????### ## """ | | ??????????????????# # # "G" | | ??????????????????# # # "*"= | | ??????????????????# # + *%!% *%= ^^ | | ?????????# ####### # #%== * % %^ ^ | | ?????????# # # = ! " [ =%* | | ?????????# ####+##@## ## " [ !*% | | ????????????????? Y## ############!%!! | | ??????????????? # [ *%%!%!= | | ?????????????# "" !!## ######### == = | | ?????????????# "T !]## #???? # !###+### | | ?????????????# "" ## #???? # ? | | ?????????????# ## #????"" # | | ?????????????######### #????"" # # """ | | ?????????????# ? #?# #?????" # # """ | | ?????????? ??# """ #?# #?????? # # """ | | ?????????? ??# """ #?# #???????+ # | | ?????????? ??# """ #?# #???????# ####T## | | # ## ### #?# #???????# #???#?? | | ########## #?# """ #?# #???????# #?????? | | ?????????# #?# """ #?# #???????# #?????? | | ?????????# #?# """ #?# ######### #?????? | | ?????????# #?# #?# ## # #?????? | | ?????????# #?# ! #?# ## """ # ??????? | | ?????????# #?# #?# ## """ #?????????? | | ?????##### #?# ### ## """ #?????????? | | ?????# #####+#### # """ #?????????? | | ?????# % # """ #?????????? | | ?????# % / #?????????? | | ?????# # """ #?????????? | | ?????# #####+#### # "" #?????????? | +----------------------------------------------------+ Best States ------------- Heat Dissipation 50 Energy Generation 14 Energy Capacity 265 Matter Stores 300 Matter Capacity 300 Sight Range 16 Terrain Scan Density 10 Armor Coverage 150 Evasion (%) 55 Item Schematics ----------------- None Robot Schematics ------------------ None Fabricated ------------ Nothing Repaired ---------- Nothing Alien Tech Used ----------------- None Achievements -------------- None Challenges ------------ None Game ------ Seed AntigravNeutronClaw Manual? 0 Play Time 00:37:09 Cumulative 127.1 hours Start 2025.05.10 @ 14:54:02 End 2025.05.10 @ 18:48:00 Sessions 1 Manual Loads 0 Difficulty Rogue Special Mode None Game No. 65 Rogue 65 Adventurer 0 Explorer 0 Win Type - Total 0 Types 0/0/0/0/0/0/0/0/0/0 Lore% 17 Gallery% 31 Achievement% 26 Wizard Run 0 Options --------- Layout 1 ASCII 0 Keyboard 0 Movement Numpad Keybinds 0 Fullscreen 1 Font 16/SmallcapsGlow Map View 50x40 Zoom Use 0% Tactical HUD 0 Map Filters NONE Filters NONE Steam SD RUN: 782be2bd-b88d-46e5-92c4-3fb21382acf4